Cogmind - Beta 15 @@@ ROGUE MODE // 2025.05.06 @ 20:45:41 Player: GR4C3 Result: Destroyed by UQ-KZW(j) with Overtuned Pulse Rifle Performance ------------- Evolutions (0) 0 Regions Visited (3) 600 Robots Destroyed (10) 50 Value Destroyed (394) 394 Prototype IDs (0) 0 Alien Tech Used (0) 0 Bonus (800) 800 TOTAL SCORE: 1844 Bonus ------- Registered with UFD 300 Met Optimus in HQ 500 Cogmind --------- Core Integrity 0/250 Matter 265/300 Energy 70/290 System Corruption 1% Temperature Cool (12) Movement Walking (120) Location -7/Scraptown Parts ------- > --- POWER (1) -------- Improved Deuterium Engine > --- PROPULSION (2) --- Armored Leg > --- UTILITY (2) ------ Advanced Sensor Array Makeshift Light Armor Plating > --- WEAPON (2) ------- CPS Tube > --- INVENTORY (5) ---- Improved Terrain Scanner Peak State ------------ > --- POWER ------------ Light Angular Momentum Engine > --- PROPULSION ------- Improved Titanium Leg Improved Titanium Leg > --- UTILITY ---------- Advanced Sensor Array Advanced Signal Interpreter > --- WEAPON ----------- Coil Gun Heavy Flak Cannon > --- INVENTORY -------- Armored Leg Improved Terrain Scanner Seismic Detector Layered Medium Armor Plating CPS Tube [Rating: 34] Favorites ----------- Power Light Angular Momentum Engine Engine Light Angular Momentum Engine Propulsion Improved Titanium Leg Leg Improved Titanium Leg Utility Improved Terrain Scanner Device Improved Terrain Scanner Storage Small Storage Unit Processor Advanced Signal Interpreter Protection Layered Medium Armor Plating Weapon Coil Gun Energy Gun Overtuned Pulse Rifle Ballistic Gun Coil Gun Ballistic Cannon Heavy Flak Cannon Launcher Subdweller Shrapnel Launcher Special Weapon CPS Tube Build | -11 -10 -10 -7 ------- Run | Yrd Mat Sub Scr Slots Evolved . | . . . . Power . | . . . . Propulsion . | . . . . Utility . | . . . . Weapon . | . . . . Parts Attached 24 | 9 . 2 13 Power 3 | 1 . . 2 Engine 3 | 1 . . 2 Core . | . . . . Reactor . | . . . . Propulsion 6 | 2 . 1 3 Treads . | . . . . Leg 6 | 2 . 1 3 Wheel . | . . . . Hover . | . . . . Flight . | . . . . Utility 7 | 3 . . 4 Device 3 | 2 . . 1 Storage 1 | 1 . . . Processor 1 | . . . 1 Hackware . | . . . . Protection 2 | . . . 2 Artifact . | . . . . Weapon 8 | 3 . 1 4 Energy Gun 2 | 1 . . 1 Energy Cannon . | . . . . Ballistic Gun 3 | 2 . . 1 Ballistic Cannon 1 | . . . 1 Launcher 1 | . . 1 . Special Weapon 1 | . . . 1 Impact Weapon . | . . . . Slashing Weapon . | . . . . Piercing Weapon . | . . . . Special Melee Weapon . | . . . . Unidentified Prototypes . | . . . . Parts Lost 7 | . . . 7 Power 1 | . . . 1 Propulsion 2 | . . . 2 Utility 1 | . . . 1 Weapon 3 | . . . 3 Highest Loss Streak 5 | . . . 5 To Critical Strikes . | . . . . Average Backups 4 | 1 2 5 4 Power . | . . . . Propulsion 1 | . . 2 1 Utility 2 | . 1 1 2 Weapon . | . 1 1 . Tool/Special . | . . . . Unused Backups 5 | . . 1 4 Power . | . . . . Propulsion 2 | . . 1 1 Utility 2 | . . . 2 Weapon 1 | . . . 1 Tool/Special . | . . . . Average Slot Usage (%) 97 | . 100 100 96 Engine 13 | . 14 14 13 Leg 27 | . 28 28 27 Device 23 | . 28 28 22 Processor 3 | . . . 4 Ballistic Gun 16 | . 28 26 13 Ballistic Cannon 8 | . . . 10 Launcher 1 | . . 1 1 Peak Build Rating 34 | 9 9 10 34 Average Rating 21 | 4 9 9 24 On Entrance 7 | . 9 9 10 Naked Turns . | . . . . Heaviest Build 30 | 12 9 16 30 Greatest Support 40 | 20 20 20 40 Greatest Overweight (x) . | . . . . Average Overweight (x) . | . . . . Largest Inventory Capacity 8 | 8 5 5 5 Average Capacity 5 | 6 5 5 5 Most Carried 5 | 5 5 5 5 Average Carried 4 | 1 2 4 4 Final Capacity 5 | 5 5 5 5 Final Carried 5 | 2 5 5 1 Class Distribution -------------------- 100% | Mutant Dominant Class ---------------- Mutant | -10/Materials Mutant | -10/Subcaves Mutant | -7/Scraptown Resources | -11 -10 -10 -7 ----------- Run | Yrd Mat Sub Scr Matter Collected 623 | 184 110 44 285 Remotely . | . . . . Salvage Created 448 | 10 . 141 297 Parts 26 | 3 . 7 16 Haulers Intercepted . | . . . . Recyclers Shooed . | . . . . Parts Field Recycled . | . . . . Retrieved Matter . | . . . . Parts Self-Destructed 12 | . . 9 3 Prevented . | . . . . Kills | -11 -10 -10 -7 ------- Run | Yrd Mat Sub Scr Combat Hostiles Destroyed 9 | . . 3 6 Guns 6 | . . 3 3 Cannons 3 | . . . 3 Classes Destroyed 5 | 1 . 1 3 Tunneler 1 | 1 . . . Subdweller 3 | . . 3 . Explorer 1 | . . . 1 Guru 2 | . . . 2 Scrapper 3 | . . . 3 Best Kill Streak 3 | 1 . 2 3 Combat Bots Only 3 | . . 2 3 Max Kills in Single Turn 1 | 1 . 1 1 Gunslinging . | . . . . Exploded . | . . . . Melee . | . . . . Uniques/NPCs Destroyed . | . . . . Combat | -11 -10 -10 -7 -------- Run | Yrd Mat Sub Scr Hostile Shots Fired 142 | . . 9 133 Missed 49 | . . 6 43 Hits 93 | . . 3 90 Melee 5 | . . . 5 Projectile 88 | . . 3 85 Critical Strikes 2 | . . . 2 Damage Taken 1479 | . . 63 1416 Core 261 | . . . 261 Absorbed by Shields . | . . . . Core Remaining (%) 100 | 100 . . . Volleys Fired 32 | 2 . 12 18 Largest 2 | 2 . 2 2 Hottest 124 | 40 . 40 124 Shots Fired 61 | 4 . 24 33 Gun 45 | 4 . 24 17 Cannon 15 | . . . 15 Launcher . | . . . . Special 1 | . . . 1 Kinetic 58 | 4 . 24 30 Thermal 2 | . . . 2 Explosive . | . . . . Electromagnetic . | . . . . Robot Hit Streak 9 | 3 . 6 9 Robot Miss Streak 5 | 1 . 1 5 Penetration Max . | . . . . Secondary Targets 1 | . . 1 . Max Gunslinging Chain 1 | . . 1 . Shots Hit Robots 40 | 3 . 17 20 Core Hits 22 | 2 . 7 13 Critical Kills 2 | . . . 2 Critical Parts Destroyed . | . . . . Critical Strikes 2 | . . . 2 Destroy 2 | . . . 2 Melee Attacks . | . . . . Impact . | . . . . Slashing . | . . . . Piercing . | . . . . Sneak Attacks . | . . . . Combat Hostiles . | . . . . Follow-up Attacks . | . . . . Damage Inflicted 613 | 26 . 153 434 Guns 291 | 26 . 153 112 Cannons 322 | . . . 322 Explosions . | . . . . Melee . | . . . . Ramming . | . . . . Kinetic 613 | 26 . 153 434 Thermal . | . . . . Explosive . | . . . . Electromagnetic . | . . . . Impact . | . . . . Slashing . | . . . . Piercing . | . . . . Highest Corruption 1 | . . . 1 Average Corruption 1 | . . . 1 Corruption Purged . | . . . . Corruption Blocked . | . . . . Effects 2 | . . . 2 Message Errors 1 | . . . 1 Data Loss (minor) 1 | . . . 1 Overload Shots . | . . . . Overflow Damage 2 | . . . 2 Projectiles 2 | . . . 2 Explosions . | . . . . Melee . | . . . . Knockbacks 8 | . . . 8 Impact . | . . . . Kinetic 8 | . . . 8 Secondary . | . . . . Self-Inflicted Damage . | . . . . Shots . | . . . . Rammed . | . . . . Targets Rammed . | . . . . Kicked . | . . . . Crushed . | . . . . Highest Temperature 261 | . . . 261 Average Temperature 102 | . . . 102 Received Heat Transfer 542 | . . 6 536 Effects 2 | . . . 2 Interference 2 | . . . 2 Siege Activations . | . . . . Martial Activations . | . . . . Shielding Activations . | . . . . Robots Disrupted . | . . . . Combat Hostiles . | . . . . Robots Corrupted . | . . . . Combat Hostiles . | . . . . Parts Fried . | . . . . Impact Corruptions . | . . . . Robots Melted . | . . . . Combat Hostiles . | . . . . Parts Melted 1 | . . . 1 Heat Transferred . | . . . . Parts Sabotaged . | . . . . Parts Stolen . | . . . . Parts Stripped . | . . . . Power Chain Reactions . | . . . . Alert | -11 -10 -10 -7 ------- Run | Yrd Mat Sub Scr Maximum Alert Level . | . . . . Low Security (%) 100 | 100 100 . . Level 1 . | . . . . Level 2 . | . . . . Level 3 . | . . . . Level 4 . | . . . . Level 5 . | . . . . High Security . | . . . . Max Security . | . . . . Peak Influence . | . . . . Initial . | . . . . Average . | . . . . Influence Increases 5 | 5 . . . Destroy 0b10 Robot/NC 5 | 5 . . . Influence Decreases 5 | 5 . . . Time Decay 5 | 5 . . . Squads Dispatched 1 | . 1 . . Investigation . | . . . . Extermination . | . . . . Reinforcement 1 | . 1 . . Assault . | . . . . Garrison . | . . . . Intercept . | . . . . Searches Triggered . | . . . . Construction Impeded . | . . . . Haulers Reinforced . | . . . . Active Scanning Responses . | . . . . Cargo Convoy Interrupts . | . . . . Stealth | -11 -10 -10 -7 --------- Run | Yrd Mat Sub Scr Distress Signals 1 | . 1 . . Communications Jammed . | . . . . Distress Signals . | . . . . Times Spotted 32 | . 2 4 26 Peak Tracking Total 8 | . 1 2 8 Tactical Retreats 1 | . . . 1 Traps | -11 -10 -10 -7 ------- Run | Yrd Mat Sub Scr Traps Triggered . | . . . . Indirectly . | . . . . Trap Hack Attempts . | . . . . Triggered . | . . . . Disarmed . | . . . . Reprogrammed . | . . . . Reused 1 | . . . 1 Traps Extracted . | . . . . Installed 1 | . . . 1 Triggered . | . . . . Machines | -11 -10 -10 -7 ---------- Run | Yrd Mat Sub Scr Machines Disabled 1 | . . . 1 Max in Single Turn 1 | . . . 1 Machines Repaired . | . . . . Machines Dismantled . | . . . . Machines Sabotaged . | . . . . Overloaded Fab Kills . | . . . . Hacking | -11 -10 -10 -7 --------- Run | Yrd Mat Sub Scr Machines Accessed 7 | . . . 7 Terminals . | . . . . Fabricators . | . . . . Repair Stations . | . . . . Recycling Units . | . . . . Scanalyzers . | . . . . Garrison Access . | . . . . Total Hacks 61 | . . . 61 Successful 61 | . . . 61 Failed . | . . . . Catastrophic . | . . . . Database Lockouts . | . . . . Manual 1 | . . . 1 Terminals . | . . . . Fabricators . | . . . . Repair Stations . | . . . . Recycling Units . | . . . . Scanalyzers . | . . . . Garrison Access . | . . . . Terminal Hacks 61 | . . . 61 Record 61 | . . . 61 Fabricator Hacks . | . . . . Repair Station Hacks . | . . . . Recycling Unit Hacks . | . . . . Scanalyzer . | . . . . Garrison Access Hacks . | . . . . Unauthorized Hacks . | . . . . Terminals . | . . . . Fabricators . | . . . . Repair Stations . | . . . . Recycling Units . | . . . . Scanalyzers . | . . . . Garrison Access . | . . . . Data Cores Recovered . | . . . . Used . | . . . . Hacking Detections . | . . . . Full Trace Events . | . . . . Feedback Events . | . . . . Feedback Blocked . | . . . . Robot Schematics Acquired . | . . . . Robots Built . | . . . . Authchips . | . . . . Time . | . . . . Total Robot Build Rating . | . . . . Part Schematics Acquired . | . . . . Parts Built . | . . . . Authchips . | . . . . Time . | . . . . Total Part Build Rating . | . . . . Parts Repaired . | . . . . Time . | . . . . Parts Recycled . | . . . . Recycled Matter . | . . . . Retrieved Matter . | . . . . Retrieved Components . | . . . . Parts Scanalyzed . | . . . . Part Schematics Acquired . | . . . . Parts Damaged . | . . . . Bothacking | -11 -10 -10 -7 ------------ Run | Yrd Mat Sub Scr Used RIF Installer . | . . . . Robots Hacked . | . . . . Non-combat . | . . . . Combat . | . . . . Robot Hacks Applied . | . . . . Relay Couplers Released . | . . . . Fabnet Peak Effective % . | . . . . Robots Rewired . | . . . . Allies Hacked . | . . . . Hacks Repelled . | . . . . Allies | -11 -10 -10 -7 -------- Run | Yrd Mat Sub Scr Total Allies . | . . . . Largest Group . | . . . . Highest-Rated Group . | . . . . Highest-Rated Ally . | . . . . Total Orders . | . . . . Ally Attacks . | . . . . Total Damage . | . . . . Kills . | . . . . Allies Corrupted . | . . . . Allies Melted 3 | . . . 3 Intel | -11 -10 -10 -7 ------- Run | Yrd Mat Sub Scr Active Infowar (turns) 2470 | 11 212 322 1925 Sensors 495 | . . . 495 Terrain 1975 | 10 212 322 1431 Seismic 1975 | 11 212 322 1430 Robot Analysis Total . | . . . . Derelict Logs Recovered 1 | . . . 1 Drone Launches . | . . . . Drone Recoveries . | . . . . Exploration | -11 -10 -10 -7 ------------- Run | Yrd Mat Sub Scr Turns Passed 2672 | 78 212 322 2060 Spaces Moved 2013 | 57 167 234 1555 Core 20 | 20 . . . Treads . | . . . . Legs 1993 | 37 167 234 1555 Wheels . | . . . . Hover . | . . . . Flight . | . . . . Fastest Speed 50 | 50 120 120 120 Average Speed 124 | 95 120 120 126 Slowest Speed 130 | 120 120 120 130 Overloaded Moves . | . . . . Propulsion Burnouts . | . . . . Robots Hopped . | . . . . Potential Cave-ins . | . . . . Cave-ins Triggered . | . . . . Exploration Rate (%) 33 | 5 34 16 79 Regions Visited 3 Branch Regions 2 Pre-discovered Areas 1 | . . . 1 Known Exits Taken . | . . . . Unknown Exits Taken 3 | 1 1 1 . Scrap Searched 3 | . . . 3 Spaces Dug . | . . . . Terrain Destroyed 3 | . . . 3 Melee . | . . . . Projectile 3 | . . . 3 AOE . | . . . . Terrain Rammed . | . . . . Walls Destroyed . | . . . . Machines Disabled . | . . . . Actions | -11 -10 -10 -7 --------- Run | Yrd Mat Sub Scr Total 2133 | 75 178 256 1624 Wait 20 | 1 9 6 4 Move 2010 | 56 166 233 1555 Hop . | . . . . Pick Up 23 | 7 3 1 12 Fast Attach 4 | 2 . . 2 Attach 10 | 5 . . 5 Detach . | . . . . Swap 16 | 2 . 2 12 Drop 17 | . . 2 15 Fire 32 | 2 . 12 18 Melee . | . . . . Ram . | . . . . Kick . | . . . . Crush . | . . . . Escape Stasis . | . . . . Rewire . | . . . . Trap 1 | . . . 1 Miscellaneous . | . . . . Route ------- -11/Scrapyard -10/Materials (discovered 2 exits: [*Min] / [*Sub]) -10/Subcaves (discovered 2 exits: *Scr x2) -7/Scraptown (discovered 2 exits: *Fac x2) History --------- Turn | Location | Event 4 | -11/Scrapyard | Discovered new exit (range 15) 79 | -11/Scrapyard | Entered Materials 80 | -10/Materials | Met a group of wandering Federalists 103 | -10/Materials | Discovered new exit (range 15) 282 | -10/Materials | Discovered new exit (range 11) 291 | -10/Materials | Entered Subcaves 292 | -10/Subcaves | Continued accompanying wandering Federalists (1) 292 | -10/Subcaves | Approached by a straggling Scientist 318 | -10/Subcaves | Build established: Mutant 531 | -10/Subcaves | A swath of the cavern ceiling suddenly collapsed 593 | -10/Subcaves | Scientist uncovered a shortcut to Scraptown 613 | -10/Subcaves | Entered Scraptown 916 | -7/Scraptown | Received an X-ray algorithm 1065 | -7/Scraptown | Scanned Subdweller tech in exchange for log data 1069 | -7/Scraptown | Learned location of Warlord (-4) 1089 | -7/Scraptown | Discovered new exit (range 5) 1227 | -7/Scraptown | Visited Assassins FH 1273 | -7/Scraptown | Visited Bundlers 1357 | -7/Scraptown | Visited Red Mages 1428 | -7/Scraptown | Visited Spacefarers 1520 | -7/Scraptown | Visited UFD Registry 1520 | -7/Scraptown | Registered with UFD as "Coghead" 1541 | -7/Scraptown | Visited Cyclists 1558 | -7/Scraptown | Entered Cyclist Reading Room 1576 | -7/Scraptown | Ran an X-ray algorithm 1610 | -7/Scraptown | Visited Awakened 2176 | -7/Scraptown | Visited CPS Storage 2341 | -7/Scraptown | Met Optimus 2341 | -7/Scraptown | Accepted into 0bPrime 2415 | -7/Scraptown | Civil war broke out across Scraptown 2490 | -7/Scraptown | Identified exit to Factory 2560 | -7/Scraptown | Lost 10 allies 2603 | -7/Scraptown | Visited Curators Association 2649 | -7/Scraptown | Optimus destroyed in the chaos of civil war 2653 | -7/Scraptown | Lost 5 parts (1p1n1u2w) 2653 | -7/Scraptown | Core integrity fell below 50% 2658 | -7/Scraptown | Core integrity fell below 20% 2658 | -7/Scraptown | Visited Science Guys 2664 | -7/Scraptown | Lost 3 allies 2673 | -7/Scraptown | Destroyed by UQ-KZW(j) with Overtuned Pulse Rifle Last Messages --------------- 02651_ System corrupted: Component data lost. 02653_ Imp. Titanium Leg destroyed. 02655_ Critical hit (Burn: +50). 02657_ Acquired 25 matter. 02661_ UQ-KZW(j) heat damages Ovr. Titanium Leg. 02665_ 85-437(j): "Don't throw away your lives for a pipe dream!" 02665_ Installed Vortex Trap. 02670_ Discarded Adv. Signal Interpreter. 02672_ 85-437(j) triggered Vortex Trap. 02672_ A wave of accelerated entropy washes over the area. 02672_ 85-437(j) destroyed. 02672_ Supplies damaged. 02672_ Ovr. Pulse Rifle destroyed. 02672_ Machine disabled. 02672_ UFD HQ Gate breached. 02672_ Machine disabled. 02672_ CPS modules attach to UQ-KZW(j). 02673_ 20-YTP(j) destroyed. Map ----- +----------------------------------------------------+ | ""##?# #????"""" ""# ##??? | | ""#??# #????"""" ""# X"#??? | | ""#??# ###?#"""" ""# "" "" ##??? | | ""#??# ""#"#"""" ""# "" "" X"#??? | | "##?# """"#"""" ""# " " ##""# | | "#??# ""#######"!& "" "" | | ""#?## ###?????#"*%= "" | | ""#??# #########"=%= "# " ![ " ##### | | ""#??# !!!!!*!%*! ""# " *%!"" ""#??? | | ""#??# [%[* =%= %! "# "" "" ##??? | | ""#??# [!*[= %=%*=%* # X"#??? | | "#??# !!%! ! %[!==%""# ##??? | | ###### ===/ / ![ ""###### ########## | | [%=!%=! [ """""""""""""""""""" | | !%[!!%[ [%= !%! """""""" "" """ | | *![%[!!=*!! *== [%*% | | =!=!!*!% !==! | | =!!%*==%= ! = | | #""""# =p[ = | | #???"# !%!!!= % | | ? ? #??""; !j*% " """""" [ """""" | | ######## ### ####??" # ;;;= [#########"=%####### | | ????# ## #?????" ;; j%* "#?# = ???#" | | ?#??# ||| ## #?????" ;; *! ! #?# ??## | | ????#"""" ## #?????" ;;% = ""#?# #?# | | ????# | | ## #?????" ;;@ ""#?# $ $ #?# | | ????#"""" ## #?????" ;; ""#?# ## ##" | | ????# ||| ## #?????" ;; """"#?# #? ### | | ????#"""" ## #?????""#; """#?##"##?####?# | | ????# | | ## #???????#; " "#?? #????????# | | ????#"""" ## #???????##"""" """#?? ?????????" | | #???######## #????????#""" X """""?????????????# | | ???????????# #????????#""""""""""??????????????? | | ############ #????????##########???????????????? | | #""""""""""" #?????????????????????????????????? | | #""""" """"" #?????????????????????????????????? | | #"""" " "" #?????????????????????????????????? | | #?????????????????????????????????? | | #"" "" "" " #?????????????????????????????????? | | #""""""""""" #?????????????????????????????????? | | #""""""""""" #?????????????????????????????????? | | ############ #?????????????????????????????????? | | ############ #?????????????????????????????????? | | """""""""""# #?????????????????????????????????? | | ""!!** [= "# #?????????????????????????????????? | | ""= *=/ "# #???#?????????????????????????????? | | "" ! "# #?????????????????????????????????? | | """ """""""# #?????????????????????????????????? | | #?????????????????????????????????? | | #?????????????????????????????????? | +----------------------------------------------------+ Best States ------------- Heat Dissipation 25 Energy Generation 18 Energy Capacity 290 Matter Stores 300 Matter Capacity 300 Sight Range 16 Robot Scan Range 16 Terrain Scan Range 16 Terrain Scan Density 10 Armor Coverage 225 Evasion (%) 55 Item Schematics ----------------- None Robot Schematics ------------------ None Fabricated ------------ Nothing Repaired ---------- Nothing Alien Tech Used ----------------- None Achievements -------------- None Challenges ------------ None Game ------ Seed RefineryArmageddonMembrane Manual? 0 Play Time 00:46:14 Cumulative 83.1 hours Start 2025.05.06 @ 19:53:44 End 2025.05.06 @ 20:45:41 Sessions 1 Manual Loads 0 Difficulty Rogue Special Mode None Game No. 69 Rogue 55 Adventurer 14 Explorer 0 Win Type - Total 0 Types 0/0/0/0/0/0/0/0/0/0 Lore% 26 Gallery% 36 Achievement% 28 Wizard Run 0 Options --------- Layout 1 ASCII 0 Keyboard 0 Movement Mouse Keybinds 0 Fullscreen 0 Font 20/Terminus Map View 50x35 Zoom Use 0% Tactical HUD 1 Map Filters NONE Filters NONE Steam 1 RUN: 75559f1d-18fe-4ab2-ab76-0737c5f999a2